bitfinex/quotes_SOLUSD_20240921
["timestamp","ask_amount","ask_price","bid_price","bid_amount"]
[1726881455933,20.25098,146.4,146.31,21.7390463]
[1726881456521,27.08158,146.4,146.31,21.7390463]
[1726881456743,20.25098,146.4,146.31,15.3642463]
[1726881457246,20.0,146.38,146.31,15.3642463]
[1726881457821,20.25098,146.4,146.31,15.3642463]
[1726881458026,15.2528,146.39,146.31,15.3642463]
[1726881458349,27.08178,146.4,146.25,0.2464261]
[1726881458350,26.8337,146.34,146.25,0.2464261]
[1726881458530,0.25098,146.33,146.25,0.2464261]
[1726881459556,0.25098,146.33,146.25,19.85565023]
[1726881459726,0.12549,146.36,146.26,1.36720707]
[1726881459927,0.25098,146.36,146.27,19.60922413]
[1726881460235,0.25098,146.37,146.27,35.21392413]
[1726881460441,6.5511,146.38,146.27,35.21392413]
[1726881460442,0.25098,146.35,146.27,35.21392413]
[1726881460641,0.5000104,146.34,146.27,35.21392413]
[1726881460951,0.5000104,146.33,146.27,15.6047]
[1726881461453,20.0,146.37,146.27,35.21392413]
[1726881461957,20.0,146.37,146.27,15.6047]
[1726881462255,20.0,146.35,146.27,15.6047]
[1726881462467,7.11017654,146.36,146.27,15.6047]
[1726881462652,7.11017654,146.36,146.28,25.14376648]
[1726881462829,6.5511,146.38,146.28,23.776884]
[1726881463157,13.660307,146.38,146.28,23.776884]
[1726881463734,20.0,146.37,146.28,23.776884]
[1726881464751,0.5000104,146.36,146.28,23.776884]
[1726881465849,0.5000104,146.36,146.27,15.6047]
[1726881466639,0.25098,146.34,146.25,0.2464261]
[1726881466842,0.25098,146.32,146.25,0.2464261]
[1726881467661,0.25098,146.3,146.25,0.2464261]
[1726881467960,0.25098,146.33,146.25,0.2464261]
[1726881469032,0.25098,146.31,146.25,0.2464261]
[1726881469255,0.5000104,146.3,146.25,0.2464261]
[1726881469429,0.5000104,146.29,146.25,0.2464261]
[1726881469748,0.12549,146.32,146.25,0.2464261]
[1726881470252,0.25098,146.3,146.25,0.2464261]
[1726881470837,20.0,146.35,146.25,0.2464261]
[1726881471048,0.7509904,146.34,146.25,0.2464261]
[1726881471627,23.776884,146.33,146.25,0.2464261]
[1726881471829,0.25098,146.31,146.25,0.2464261]
[1726881472057,0.5000104,146.3,146.25,0.2464261]
[1726881472260,0.5000104,146.29,146.25,0.2464261]
[1726881472431,0.25098,146.28,146.25,0.2464261]
[1726881473065,0.5000104,146.27,146.25,0.2464261]
[1726881473251,0.7509904,146.29,146.25,0.2464261]
[1726881473554,0.25098,146.27,146.25,0.2464261]
[1726881474660,20.0,146.28,146.25,0.2464261]
[1726881475033,0.5000104,146.27,146.25,0.2464261]
[1726881475234,20.0,146.28,146.25,0.2464261]
[1726881477340,20.0,146.3,146.25,0.2464261]
[1726881477859,0.5000104,146.29,146.25,0.2464261]
[1726881478167,0.25098,146.29,146.25,0.2464261]
[1726881481467,20.0,146.3,146.25,0.2464261]
[1726881481764,1.18846211,146.36,146.26,47.79446575]
[1726881482064,0.2464261,146.4,146.3,6.2703]
[1726881482369,7.33232524,146.4,146.3,6.2703]
[1726881482546,7.33232524,146.4,146.31,1.36647866]
[1726881482865,48.36232524,146.4,146.3,6.2703]
[1726881483067,7.33232524,146.4,146.3,6.2703]
[1726881483247,7.33232524,146.4,146.28,6.2703]
[1726881483445,7.33232524,146.4,146.3,31.40486575]
[1726881483646,20.0,146.39,146.3,31.40486575]
[1726881484342,20.0,146.39,146.31,1.36650844]
[1726881484651,20.0,146.39,146.3,31.40486575]
[1726881485047,7.33232524,146.4,146.34,23.776884]
[1726881485278,0.2464261,146.4,146.34,23.776884]
[1726881485452,0.2464261,146.4,146.31,16.3896]
[1726881485768,0.2464261,146.4,146.32,1.366381]
[1726881485946,0.2464261,146.4,146.33,19.61457084]
[1726881486271,0.2464261,146.4,146.37,19.61457084]
[1726881486445,0.2464261,146.4,146.38,1.36604707]
[1726881487663,0.2464261,146.4,146.37,19.61457084]
[1726881487970,0.2464261,146.4,146.36,37.63077485]
[1726881488547,0.2464261,146.4,146.36,6.2703]
[1726881488845,0.2464261,146.4,146.33,37.63077485]
[1726881489152,0.2464261,146.4,146.34,25.1431344]
[1726881489349,0.2464261,146.4,146.36,31.36047485]
[1726881489868,0.2464261,146.4,146.37,1.36604541]
[1726881490276,0.2464261,146.4,146.39,31.36047485]
[1726881490449,0.2464261,146.4,146.39,48.29745041]
[1726881490648,0.2464261,146.4,146.39,46.93167485]
[1726881490849,0.2464261,146.4,146.39,72.07430772]
[1726881491163,0.2464261,146.45,146.41,6.6596]
[1726881491469,0.2464261,146.45,146.42,31.36047485]
[1726881492478,0.2464261,146.45,146.39,46.93167485]
[1726881493773,0.2464261,146.45,146.39,15.5712]
[1726881495355,0.7509904,146.44,146.35,15.8918]
[1726881495770,0.5000104,146.43,146.35,15.8918]
[1726881496156,0.25098,146.44,146.35,15.8918]
[1726881496674,0.5000104,146.43,146.35,15.8918]
[1726881496875,22.05738,146.44,146.35,15.8918]
[1726881498171,22.05738,146.44,146.36,1.36627085]
[1726881498680,0.12549,146.42,146.35,15.8918]
[1726881498883,0.5000104,146.41,146.35,15.8918]
[1726881499090,28.88618,146.44,146.33,6.4687]
[1726881499254,0.5000104,146.43,146.33,6.4687]
[1726881499584,0.12549,146.42,146.33,6.4687]
[1726881501379,0.25098,146.42,146.33,6.4687]
[1726881501772,7.57036436,146.41,146.31,15.8918]
[1726881502161,0.25098,146.4,146.31,15.8918]
[1726881502369,0.5000104,146.39,146.31,15.8918]
[1726881503887,0.25098,146.4,146.31,15.8918]
[1726881507993,7.07035396,146.41,146.32,1.36654619]
[1726881508202,7.07035396,146.41,146.34,31.36047485]
[1726881508691,7.07035396,146.41,146.35,1.36627548]
[1726881509079,7.07035396,146.41,146.37,31.36047485]
[1726881509276,21.8064,146.44,146.38,1.36598843]
[1726881510594,21.8064,146.44,146.37,31.36047485]
[1726881511892,21.8064,146.44,146.38,1.36594925]
[1726881512198,21.8064,146.44,146.37,31.36047485]
[1726881512398,21.8064,146.44,146.38,1.36594892]
[1726881512573,21.8064,146.44,146.37,31.36047485]
[1726881512774,21.8064,146.44,146.38,1.36594942]
[1726881512979,21.8064,146.44,146.37,31.36047485]
[1726881513979,0.2464261,146.45,146.4,31.36047485]
[1726881514301,0.2464261,146.45,146.41,23.776884]
[1726881514676,0.2464261,146.45,146.43,31.36047485]
[1726881515198,0.2464261,146.45,146.44,1.36531847]
[1726881516210,0.2464261,146.45,146.43,31.36047485]
[1726881516503,0.2464261,146.45,146.4,55.13735885]
[1726881516676,0.2464261,146.45,146.43,31.36047485]
[1726881516998,0.2464261,146.45,146.44,23.776884]
[1726881517195,0.2464261,146.45,146.43,31.36047485]
[1726881518198,0.2464261,146.45,146.4,55.13735885]
[1726881518405,0.2464261,146.45,146.4,23.776884]
[1726881520781,0.2464261,146.45,146.39,15.7418]
[1726881523202,0.2464261,146.45,146.38,20.0]
[1726881523508,0.2464261,146.45,146.35,15.1557]
[1726881524705,0.12549,146.44,146.35,15.1557]
[1726881526090,0.2464261,146.45,146.36,23.776884]
[1726881526615,0.2464261,146.45,146.38,23.776884]
[1726881526782,0.2464261,146.45,146.41,23.776884]
[1726881526988,0.2464261,146.45,146.42,1.36551916]
[1726881533196,0.2464261,146.45,146.43,55.13735885]
[1726881533398,0.2464261,146.45,146.44,1.36536292]
[1726881533607,0.2464261,146.45,146.44,25.14224692]
[1726881537316,0.2464261,146.45,146.44,23.776884]
[1726881537916,0.2464261,146.45,146.44,44.72495822]
[1726881538914,0.2464261,146.49,146.45,23.776884]
[1726881539109,0.2464261,146.49,146.47,19.58270201]
[1726881539325,0.2464261,146.49,146.48,1.36511105]
[1726881540533,0.2464261,146.49,146.45,43.35958601]
[1726881541709,0.2464261,146.49,146.44,23.776884]
[1726881542342,0.2464261,146.49,146.45,19.58270201]
[1726881543537,0.2464261,146.49,146.46,23.776884]
[1726881543831,0.2464261,146.49,146.46,25.14214533]
[1726881545044,0.2464261,146.49,146.47,19.58270201]
[1726881545342,0.2464261,146.49,146.48,1.36504831]
[1726881546240,0.2464261,146.49,146.48,44.72463432]
[1726881546624,0.2464261,146.49,146.48,43.35958601]
[1726881547036,0.2464261,146.49,146.48,64.84993462]
[1726881547224,0.0961542,146.51,146.48,64.84993462]
[1726881547225,0.0961542,146.51,146.5,19.58270201]
[1726881547544,0.0961542,146.51,146.5,44.72433685]
[1726881548744,0.0961542,146.51,146.5,44.84982685]
[1726881549613,0.0961542,146.51,146.5,43.61056601]
[1726881549824,0.0961542,146.51,146.5,63.61056601]
[1726881550026,0.0961542,146.51,146.5,43.35958601]
[1726881550324,0.0961542,146.51,146.5,44.97532244]
[1726881550724,0.0961542,146.51,146.5,43.61056601]
[1726881551541,0.0961542,146.51,146.5,43.35958601]
[1726881553730,0.0961542,146.51,146.5,44.72430877]
[1726881553935,0.0961542,146.51,146.5,43.35958601]
[1726881554139,0.0961542,146.51,146.44,16.3707]
[1726881554346,0.0961542,146.51,146.44,35.95340201]
[1726881554523,0.0961542,146.51,146.45,1.36514042]
[1726881555420,0.0961542,146.51,146.42,19.58270201]
[1726881555821,0.0961542,146.51,146.44,19.58270201]
[1726881556022,0.0961542,146.51,146.45,1.3652621]
[1726881556724,0.0961542,146.51,146.44,19.58270201]
[1726881557122,0.0961542,146.51,146.45,23.776884]
[1726881557652,6.5562,146.5,146.4,15.6621]
[1726881557820,0.25098,146.49,146.38,19.82912811]
[1726881558023,63.8705,146.5,146.4,19.58270201]
[1726881558226,22.8405,146.5,146.4,19.58270201]
[1726881559032,22.8405,146.5,146.41,23.776884]
[1726881559232,0.25098,146.48,146.41,23.776884]
[1726881559430,0.25098,146.48,146.38,0.2464261]
[1726881559431,0.12549,146.48,146.38,39.82912811]
[1726881559921,0.25098,146.49,146.38,39.82912811]
[1726881560623,0.25098,146.47,146.38,20.2464261]
[1726881560820,22.8405,146.45,146.38,0.2464261]
[1726881561141,0.5000104,146.44,146.38,0.2464261]
[1726881561944,0.12549,146.43,146.38,0.2464261]
[1726881562522,7.07998,146.44,146.38,0.2464261]
[1726881562719,0.25098,146.44,146.38,0.2464261]
[1726881563424,20.25098,146.44,146.38,0.2464261]
[1726881563641,0.25098,146.42,146.38,0.2464261]
[1726881563950,0.5000104,146.41,146.38,0.2464261]
[1726881564421,0.25098,146.42,146.38,0.2464261]
[1726881564618,0.25098,146.43,146.38,0.2464261]
[1726881565455,46.617384,146.42,146.38,0.2464261]
[1726881565625,23.776884,146.4,146.38,0.2464261]
[1726881565829,44.027864,146.39,146.38,0.2464261]
[1726881569725,51.10800967,146.39,146.38,0.2464261]
[1726881570144,27.33112567,146.39,146.38,0.2464261]
[1726881571045,7.08014567,146.39,146.38,0.2464261]
[1726881571425,22.8405,146.42,146.38,0.2464261]
[1726881572232,7.07229901,146.44,146.38,0.2464261]
[1726881576756,0.5000104,146.43,146.38,0.2464261]
[1726881577265,0.12549,146.42,146.38,0.2464261]
[1726881578045,0.25098,146.43,146.38,0.2464261]
[1726881579631,92.3870744,146.43,146.38,0.2464261]
[1726881580159,0.25098,146.4,146.38,0.2464261]
[1726881580350,0.7509904,146.39,146.38,0.2464261]
[1726881580652,0.25098,146.39,146.38,0.2464261]
[1726881583159,0.12549,146.4,146.38,0.2464261]
[1726881583443,27.08055999,146.41,146.38,0.2464261]
[1726881585364,7.08055999,146.41,146.38,0.2464261]
[1726881589562,41.03,146.45,146.38,0.2464261]
[1726881589961,48.11089864,146.45,146.38,0.2464261]
[1726881590140,48.11089864,146.45,146.38,1.61243523]
[1726881590772,7.08089864,146.45,146.39,23.776884]
[1726881590948,7.08089864,146.45,146.4,1.36582568]
[1726881591565,41.03,146.49,146.39,23.776884]
[1726881591777,48.10835582,146.49,146.38,24.0233101]
[1726881592071,0.25098,146.48,146.38,24.0233101]
[1726881592271,7.07835582,146.49,146.4,23.776884]
[1726881592447,7.07835582,146.49,146.41,1.3656965]
[1726881592950,7.07835582,146.49,146.4,23.776884]
[1726881593557,0.25098,146.48,146.4,23.776884]
[1726881594070,0.25098,146.48,146.4,43.36948455]
[1726881595964,7.07835582,146.49,146.42,23.776884]
[1726881596274,7.07835582,146.49,146.43,1.36562335]
[1726881596469,7.07835582,146.49,146.41,23.776884]
[1726881596768,0.25098,146.48,146.38,20.2464261]
[1726881596975,0.25098,146.48,146.39,23.776884]
[1726881597176,0.25098,146.46,146.38,0.2464261]
[1726881597349,0.25098,146.44,146.38,0.2464261]
[1726881597750,0.5000104,146.43,146.38,0.2464261]
[1726881598375,0.25098,146.45,146.38,0.2464261]
[1726881601257,20.25098,146.45,146.38,0.2464261]
[1726881602048,7.08325388,146.44,146.38,0.2464261]
[1726881602376,20.25098,146.45,146.38,0.2464261]
[1726881603174,41.03,146.44,146.38,0.2464261]
[1726881603375,0.12549,146.43,146.38,0.2464261]
[1726881603576,0.5000104,146.42,146.38,0.2464261]
[1726881604660,0.25098,146.41,146.38,0.2464261]
[1726881604861,0.5000104,146.4,146.38,0.2464261]
[1726881605363,0.25098,146.39,146.38,0.2464261]
[1726881607384,41.03,146.42,146.38,0.2464261]
[1726881607672,22.5371,146.45,146.38,0.2464261]
[1726881607876,22.5371,146.49,146.38,1.61245669]
[1726881608063,7.07877148,146.48,146.38,1.61245669]
[1726881608268,41.03,146.47,146.38,1.61245669]
[1726881608863,61.28098,146.46,146.38,1.61245669]
[1726881609078,61.03,146.46,146.38,0.2464261]
[1726881610278,0.12549,146.45,146.38,1.61249672]
[1726881610576,0.25098,146.45,146.38,1.61249672]
[1726881610776,61.03,146.46,146.38,1.61249672]
[1726881611268,61.03,146.46,146.38,0.2464261]
[1726881611574,41.03,146.46,146.38,0.2464261]
[1726881611777,7.07877148,146.48,146.41,19.59260055]
[1726881612087,0.0961542,146.51,146.42,7.89927885]
[1726881612464,0.0961542,146.51,146.43,43.36948455]
[1726881612982,0.0961542,146.51,146.44,1.36548376]
[1726881613182,0.0961542,146.51,146.45,23.776884]
[1726881613355,0.0961542,146.51,146.47,23.776884]
[1726881613560,0.0961542,146.51,146.46,17.46678582]
[1726881613561,0.0961542,146.51,146.48,1.36517283]
[1726881614466,0.0961542,146.51,146.47,1.3652043]
[1726881615076,0.0961542,146.51,146.48,23.776884]
[1726881615280,0.0961542,146.51,146.49,1.3650459]
[1726881615899,0.0961542,146.51,146.46,16.1015]
[1726881616085,0.0961542,146.51,146.47,23.776884]
[1726881616400,0.0961542,146.51,146.48,1.36515817]
[1726881618001,0.0961542,146.51,146.47,23.776884]
[1726881618799,0.0961542,146.51,146.46,16.1015]
[1726881620289,0.0343166,146.53,146.46,16.1015]
[1726881620682,0.534327,146.53,146.46,16.1015]
[1726881621596,0.12549,146.52,146.42,6.5336]
[1726881621804,0.5000104,146.51,146.43,23.776884]
[1726881622687,0.25098,146.5,146.42,22.3505]
[1726881623003,0.25098,146.48,146.42,22.3505]
[1726881623189,0.12549,146.48,146.42,15.8169]
[1726881623393,0.25098,146.49,146.42,15.8169]
[1726881623578,0.25098,146.49,146.42,17.1826027]
[1726881624087,20.25098,146.5,146.42,15.8169]
[1726881624286,0.5000104,146.49,146.42,15.8169]
[1726881624500,0.25098,146.48,146.42,15.8169]
[1726881625221,0.25098,146.49,146.42,15.8169]
[1726881626499,7.32237749,146.49,146.42,15.8169]
[1726881626803,7.32237749,146.49,146.39,19.59260055]
[1726881626804,0.25098,146.47,146.4,20.0]
[1726881627308,0.25098,146.48,146.4,20.0]
[1726881627604,0.25098,146.48,146.39,15.8169]
[1726881628204,0.25098,146.48,146.4,23.776884]
[1726881628508,48.10139749,146.49,146.42,19.59260055]
[1726881628509,7.07139749,146.49,146.42,19.59260055]
[1726881628697,7.07139749,146.49,146.44,23.776884]
[1726881628889,15.96,146.54,146.45,1.36542547]
[1726881629090,23.02408395,146.54,146.45,1.36542547]
[1726881629411,7.06408395,146.54,146.46,22.1139]
[1726881629707,7.06408395,146.54,146.47,1.36531153]
[1726881629913,7.06408395,146.54,146.46,22.1139]
[1726881631287,0.5000104,146.53,146.46,22.1139]
[1726881631489,0.25098,146.53,146.46,15.8169]
[1726881631790,65.057864,146.53,146.46,15.8169]
[1726881632001,61.5300104,146.52,146.42,21.5654]
[1726881632200,0.25098,146.51,146.42,21.5654]
[1726881635833,0.25098,146.51,146.43,23.776884]
[1726881635992,0.12549,146.53,146.45,23.776884]
[1726881636194,0.12549,146.54,146.45,23.776884]
[1726881636394,41.03,146.55,146.46,1.36531255]
[1726881636598,7.0440613,146.54,146.46,1.36531255]
[1726881637303,0.12549,146.53,146.45,23.776884]
[1726881637813,0.25098,146.53,146.45,23.776884]
[1726881638017,0.25098,146.53,146.46,1.36525947]
[1726881639112,0.25098,146.53,146.45,23.776884]
[1726881639411,0.5000104,146.52,146.45,23.776884]
[1726881640720,0.25098,146.51,146.42,41.15800055]
[1726881640901,0.25098,146.51,146.43,20.0]
[1726881641620,0.5000104,146.5,146.43,20.0]
[1726881641825,0.25098,146.49,146.42,21.5654]
[1726881643211,61.28098,146.5,146.42,21.5654]
[1726881643524,61.28098,146.5,146.42,21.78478021]
[1726881644405,64.806884,146.47,146.42,0.21938021]
[1726881644609,61.28098,146.46,146.42,0.21938021]
[1726881644812,0.25098,146.44,146.42,0.21938021]
[1726881645025,0.6255004,146.43,146.42,0.21938021]
[1726881646519,0.7509904,146.43,146.42,0.21938021]
[1726881646941,0.25098,146.43,146.42,0.21938021]
[1726881647142,0.7509904,146.43,146.42,0.21938021]
[1726881647525,92.3870744,146.43,146.42,0.21938021]
[1726881649446,24.027864,146.39,146.38,0.2464261]
[1726881649644,0.25098,146.39,146.38,0.2464261]
[1726881651450,0.12549,146.39,146.38,0.2464261]
[1726881651632,0.12549,146.43,146.38,0.2464261]
[1726881651831,0.12549,146.42,146.38,0.2464261]
[1726881653332,20.0,146.43,146.38,0.2464261]
[1726881653654,7.02245595,146.44,146.38,0.2464261]
[1726881654450,0.5000104,146.43,146.38,0.2464261]
[1726881654837,0.25098,146.42,146.38,0.2464261]
[1726881655038,0.25098,146.4,146.38,0.2464261]
[1726881655347,0.25098,146.42,146.38,0.2464261]
[1726881655534,20.25098,146.42,146.38,0.2464261]
[1726881655739,0.25098,146.4,146.38,0.2464261]
[1726881656437,0.7509904,146.39,146.38,0.2464261]
[1726881657248,0.25098,146.39,146.38,0.2464261]
[1726881659245,7.03242134,146.4,146.38,0.2464261]
[1726881659760,0.5000104,146.39,146.38,0.2464261]
[1726881660341,0.5000104,146.39,146.34,0.2464261]
[1726881660342,41.5300104,146.39,146.34,0.2464261]
[1726881660533,61.28098,146.36,146.34,0.2464261]
[1726881661159,41.28098,146.36,146.34,0.2464261]
[1726881661553,61.28098,146.36,146.34,0.2464261]
[1726881662441,6.8317,146.38,146.34,0.2464261]
[1726881662442,0.25098,146.37,146.34,0.2464261]
[1726881670875,0.25098,146.38,146.34,0.2464261]
[1726881671248,0.25098,146.39,146.34,0.2464261]
[1726881672271,0.25098,146.4,146.34,0.2464261]
[1726881673778,24.027864,146.4,146.34,0.2464261]
[1726881673955,20.25098,146.38,146.34,0.2464261]
[1726881674280,0.25098,146.36,146.34,0.2464261]
[1726881674460,0.5000104,146.35,146.34,0.2464261]
[1726881675466,0.25098,146.37,146.34,0.2464261]
[1726881676589,0.12549,146.38,146.34,0.2464261]
[1726881676752,41.03,146.4,146.34,0.2464261]
[1726881676957,15.6307,146.45,146.34,6.6581261]
[1726881677596,48.03483372,146.44,146.35,16.5402]
[1726881678451,48.53484412,146.44,146.35,16.5402]
[1726881678655,24.027864,146.43,146.35,16.5402]
[1726881678874,0.25098,146.41,146.35,16.5402]
[1726881679075,0.25098,146.39,146.35,16.5402]
[1726881679284,0.5000104,146.38,146.35,16.5402]
[1726881679480,0.5000104,146.38,146.34,6.6581261]
[1726881679481,0.25098,146.37,146.34,0.2464261]
[1726881679787,0.5000104,146.36,146.34,0.2464261]
[1726881686970,0.12549,146.37,146.34,0.2464261]
[1726881687287,0.25098,146.41,146.34,0.2464261]
[1726881687482,20.0,146.42,146.34,0.2464261]
[1726881687483,0.25098,146.42,146.34,0.2464261]
[1726881687864,0.25098,146.4,146.34,0.2464261]
[1726881688069,0.5000104,146.39,146.34,0.2464261]
[1726881688267,41.28098,146.38,146.34,0.2464261]
[1726881688472,0.25098,146.36,146.34,0.2464261]
[1726881688898,0.5000104,146.35,146.34,0.2464261]
[1726881689269,41.28098,146.38,146.34,0.2464261]
[1726881690401,0.25098,146.38,146.34,0.2464261]
[1726881691102,0.12549,146.38,146.34,0.2464261]
[1726881691273,0.12549,146.39,146.34,0.2464261]
[1726881691476,0.5000104,146.38,146.34,0.2464261]
[1726881691897,0.12549,146.37,146.34,0.2464261]
[1726881692083,0.5000104,146.36,146.34,0.2464261]
[1726881692797,0.12549,146.37,146.34,0.2464261]
[1726881696386,0.25098,146.38,146.34,0.2464261]
[1726881696602,0.25098,146.36,146.34,0.2464261]
[1726881696773,0.5000104,146.35,146.34,0.2464261]
[1726881697779,0.25098,146.37,146.34,0.2464261]
[1726881697978,0.5000104,146.36,146.34,0.2464261]
[1726881700985,0.25098,146.37,146.34,0.2464261]
[1726881703118,0.5000104,146.36,146.34,0.2464261]
[1726881706196,0.25098,146.37,146.34,0.2464261]
[1726881707700,0.12549,146.37,146.34,0.2464261]
[1726881707903,61.03,146.4,146.34,0.2464261]
[1726881709311,0.25098,146.39,146.34,0.2464261]
[1726881710392,0.5000104,146.38,146.34,0.2464261]
[1726881711208,0.25098,146.37,146.34,0.2464261]
[1726881711409,0.5000104,146.36,146.34,0.2464261]
[1726881712212,0.25098,146.35,146.34,0.2464261]
[1726881712623,41.03,146.38,146.34,0.2464261]
[1726881712919,0.25098,146.37,146.34,0.2464261]
[1726881713120,0.25098,146.38,146.34,0.2464261]
[1726881714888,0.25098,146.36,146.34,0.2464261]
[1726881715094,0.5000104,146.35,146.34,0.2464261]
[1726881715295,0.12549,146.35,146.34,0.2464261]
[1726881718716,0.25098,146.38,146.34,0.2464261]
[1726881718915,7.03266937,146.4,146.34,0.2464261]
[1726881719105,41.03,146.41,146.34,0.2464261]
[1726881720028,61.03,146.42,146.34,0.2464261]
[1726881720312,0.5000104,146.41,146.34,0.2464261]
[1726881721120,7.03765066,146.44,146.36,15.8313]
[1726881721300,7.03765066,146.44,146.36,17.19758322]
[1726881721496,41.03,146.45,146.36,17.19758322]
[1726881722003,7.02545268,146.47,146.37,43.36948455]
[1726881722223,48.05545268,146.47,146.37,43.36948455]
[1726881722417,41.03,146.47,146.37,43.36948455]
[1726881722714,20.0,146.46,146.37,43.36948455]
[1726881723027,20.0,146.48,146.37,43.36948455]
[1726881723207,7.25215623,146.49,146.39,43.36948455]
[1726881724421,0.25098,146.48,146.39,43.36948455]
[1726881725423,0.25098,146.48,146.39,23.776884]
[1726881726209,0.25098,146.48,146.4,15.8313]
[1726881727698,0.25098,146.48,146.41,20.0]
[1726881728231,0.2464261,146.49,146.43,15.8313]
[1726881728809,0.2464261,146.49,146.43,35.42390055]
[1726881729029,0.2464261,146.49,146.44,20.0]
[1726881729326,0.2464261,146.49,146.46,22.0471]
[1726881729504,0.2464261,146.49,146.46,23.41245024]
[1726881730016,0.2464261,146.53,146.47,20.0]
[1726881730510,0.2464261,146.53,146.46,22.0471]
[1726881731030,0.25098,146.52,146.46,22.0471]
[1726881731914,0.25098,146.5,146.46,22.0471]
[1726881733114,0.25098,146.51,146.46,22.0471]
[1726881733615,0.25098,146.52,146.46,22.0471]
[1726881736226,0.2464261,146.53,146.46,22.0471]
[1726881737229,0.2464261,146.53,146.47,1.3651776]
[1726881737425,0.2464261,146.53,146.48,16.5311]
[1726881737632,0.2464261,146.53,146.49,1.3651308]
[1726881738323,0.2464261,146.53,146.48,16.5311]
[1726881738715,0.12549,146.52,146.48,16.5311]
[1726881739111,0.25098,146.52,146.48,16.5311]
[1726881739533,0.12549,146.52,146.48,16.5311]
[1726881741526,0.2464261,146.53,146.48,16.5311]
[1726881743430,0.5000104,146.52,146.48,16.5311]
[1726881744436,0.25098,146.52,146.48,16.5311]
[1726881745234,0.2464261,146.53,146.49,1.36537588]
[1726881745414,0.2464261,146.53,146.48,16.5311]
[1726881745734,0.2464261,146.53,146.43,7.74964277]
[1726881745735,0.2464261,146.53,146.51,16.5311]
[1726881745941,0.2464261,146.53,146.52,1.36484791]
[1726881746239,0.3425803,146.59,146.52,21.36484791]
[1726881746411,0.3425803,146.59,146.53,23.776884]
[1726881746618,0.3425803,146.59,146.54,1.36453987]
[1726881747037,0.3425803,146.59,146.55,22.5886]
[1726881750227,0.3425803,146.59,146.56,1.3646644]
[1726881751640,0.3425803,146.59,146.57,19.59260055]
[1726881751948,0.3425803,146.59,146.58,1.36414772]
[1726881752729,0.31994311,146.62,146.59,40.151784]
[1726881753242,0.31994311,146.62,146.59,16.3749]
[1726881753825,0.31994311,146.62,146.6,1.3641082]
[1726881754431,0.31994311,146.62,146.59,16.3749]
[1726881754741,0.31994311,146.62,146.6,1.36411472]
[1726881755425,0.31994311,146.62,146.59,16.3749]
[1726881756327,0.31994311,146.62,146.6,1.36401545]
[1726881756850,0.31994311,146.62,146.59,4.61425177]
[1726881757043,0.31994311,146.62,146.6,1.36398651]
[1726881758533,0.31994311,146.62,146.59,4.61425177]
[1726881762446,0.31994311,146.62,146.6,1.36410746]
[1726881762746,0.31994311,146.62,146.59,4.61425177]
[1726881762952,0.31994311,146.62,146.61,1.36410586]
[1726881763159,0.31994311,146.62,146.61,50.96239041]
[1726881763328,0.31994311,146.62,146.61,70.96239041]
[1726881764138,0.31994311,146.62,146.61,69.59828455]
[1726881764342,0.31994311,146.62,146.61,50.005684]
[1726881764534,0.31994311,146.62,146.61,6.2288]
[1726881765767,0.31994311,146.62,146.59,4.61425177]
[1726881766130,0.31994311,146.62,146.6,23.776884]
[1726881766434,0.31994311,146.62,146.61,25.14068794]
[1726881767236,0.31994311,146.62,146.61,64.73328849]
[1726881767765,0.31994311,146.62,146.61,44.73328849]
[1726881768252,0.31994311,146.62,146.61,64.73328849]
[1726881768451,0.31994311,146.62,146.61,63.36948455]
[1726881768653,0.31994311,146.62,146.61,43.776884]
[1726881776870,0.2464261,146.66,146.62,65.998164]
[1726881777079,0.2464261,146.66,146.65,19.59260055]
[1726881777373,0.2464261,146.66,146.65,63.49497455]
[1726881777547,0.0961542,146.68,146.66,43.902374]
[1726881777755,0.0961542,146.68,146.67,64.85804763]
[1726881778883,0.0961542,146.68,146.67,63.49497455]
[1726881780385,0.0961542,146.68,146.67,43.776884]
[1726881781671,0.0961542,146.68,146.67,43.902374]
[1726881782696,0.0961542,146.68,146.67,63.49497455]
[1726881784404,0.0961542,146.68,146.67,63.62046455]
[1726881784698,0.0961542,146.68,146.67,86.95366801]
[1726881786093,0.0961542,146.68,146.67,85.59076455]
[1726881786675,0.0961542,146.68,146.67,85.46527455]
[1726881787689,0.0961542,146.68,146.67,86.82832197]
[1726881789094,0.0961542,146.68,146.67,86.70283197]
[1726881789297,0.0961542,146.68,146.67,20.0]